[Event "*** Titled Tuesday Blitz"]
[Site "Chess.com"]
[Date "2019.02.05"]
[Round "8"]
[White "Vulcanochess"]
[Black "GMMatamoros"]
[Result "0-1"]
[WhiteElo "2303"]
[BlackElo "2509"]
[TimeControl "180+2"]
[EndTime "14:59:21 PST"]
[Termination "GMMatamoros won by resignation"]

1. d4 {[%clk 0:03:01.9]} 1... e6 {[%clk 0:03:00]} 2. c4 {[%clk 0:03:02.2]} 2...
Bb4+ {[%clk 0:03:01]} 3. Bd2 {[%clk 0:03:01.9]} 3... a5 {[%clk 0:03:01.6]} 4.
Nc3 {[%clk 0:03:01.5]} 4... d6 {[%clk 0:03:00.8]} 5. a3 {[%clk 0:03:01.9]} 5...
Bxc3 {[%clk 0:03:00.8]} 6. Bxc3 {[%clk 0:03:03.3]} 6... Nf6 {[%clk 0:02:58.9]}
7. Qc2 {[%clk 0:03:03.3]} 7... Qe7 {[%clk 0:02:52.2]} 8. e4 {[%clk 0:02:45.4]}
8... e5 {[%clk 0:02:52.6]} 9. Nf3 {[%clk 0:02:45]} 9... Nc6 {[%clk 0:02:24.5]}
10. d5 {[%clk 0:02:37.4]} 10... Nb8 {[%clk 0:02:22.9]} 11. c5 {[%clk 0:02:27.5]}
11... O-O {[%clk 0:02:21.7]} 12. cxd6 {[%clk 0:02:26.8]} 12... cxd6 {[%clk
0:02:23.6]} 13. Nd2 {[%clk 0:02:21.4]} 13... Nbd7 {[%clk 0:02:18.8]} 14. Be2
{[%clk 0:02:20.9]} 14... a4 {[%clk 0:02:12]} 15. O-O {[%clk 0:02:21]} 15... Nc5
{[%clk 0:02:12.6]} 16. Kh1 {[%clk 0:02:09.3]} 16... Bd7 {[%clk 0:02:12.5]} 17.
Rac1 {[%clk 0:02:08.1]} 17... b5 {[%clk 0:01:59.9]} 18. Qd1 {[%clk 0:02:01.5]}
18... Nfxe4 {[%clk 0:01:57.1]} 19. Nxe4 {[%clk 0:02:02.1]} 19... Nxe4 {[%clk
0:01:59]} 20. Bb4 {[%clk 0:02:03.3]} 20... Rfc8 {[%clk 0:01:56.1]} 21. f4 {[%clk
0:02:03.3]} 21... exf4 {[%clk 0:01:38.5]} 22. Bf3 {[%clk 0:01:15.9]} 22... f5
{[%clk 0:01:19.8]} 23. Qd4 {[%clk 0:00:48.6]} 23... Qe5 {[%clk 0:01:03.5]} 24.
Rxc8+ {[%clk 0:00:22.4]} 24... Rxc8 {[%clk 0:01:00.9]} 25. Qa7 {[%clk
0:00:23.1]} 25... Qe7 {[%clk 0:00:45.3]} 26. Qb6 {[%clk 0:00:08]} 26... Nc5
{[%clk 0:00:40.5]} 27. h3 {[%clk 0:00:08.2]} 27... Be8 {[%clk 0:00:36.5]} 28.
Re1 {[%clk 0:00:09]} 28... Qd8 {[%clk 0:00:36.6]} 29. Qa7 {[%clk 0:00:09.2]}
29... h6 {[%clk 0:00:34.3]} 30. Bc3 {[%clk 0:00:09]} 30... Bf7 {[%clk 0:00:28]}
31. Re7 {[%clk 0:00:08.7]} 31... Ra8 {[%clk 0:00:13.9]} 32. Rxf7 {[%clk
0:00:07.2]} 32... Rxa7 {[%clk 0:00:14.4]} 33. Rxa7 {[%clk 0:00:07.3]} 33... Nd7
{[%clk 0:00:14.9]} 34. Be2 {[%clk 0:00:05.6]} 34... Ne5 {[%clk 0:00:14.4]} 35.
Bxb5 {[%clk 0:00:04.9]} 35... Qb6 {[%clk 0:00:15.2]} 36. Ra8+ {[%clk 0:00:05.3]}
36... Kh7 {[%clk 0:00:16.4]} 37. Be2 {[%clk 0:00:03]} 37... Qf2 {[%clk
0:00:16.8]} 38. Bh5 {[%clk 0:00:02.5]} 38... f3 {[%clk 0:00:17.8]} 39. Bxf3
{[%clk 0:00:02.6]} 39... Qf1+ {[%clk 0:00:16.2]} 40. Kh2 {[%clk 0:00:03]} 40...
Nxf3+ {[%clk 0:00:17.6]} 41. gxf3 {[%clk 0:00:04.7]} 41... Qf2+ {[%clk
0:00:19.1]} 42. Kh1 {[%clk 0:00:03.3]} 42... Qxf3+ {[%clk 0:00:20.4]} 43. Kh2
{[%clk 0:00:05]} 43... Qf2+ {[%clk 0:00:21.6]} 44. Kh1 {[%clk 0:00:05.9]} 44...
Qf3+ {[%clk 0:00:23]} 45. Kh2 {[%clk 0:00:06.6]} 45... h5 {[%clk 0:00:20.7]} 46.
Rb8 {[%clk 0:00:05.1]} 46... Qxd5 {[%clk 0:00:20.9]} 47. Rd8 {[%clk 0:00:03.8]}
47... Qf3 {[%clk 0:00:21.5]} 48. Rd7 {[%clk 0:00:04.6]} 48... Qf2+ {[%clk
0:00:22.9]} 49. Kh1 {[%clk 0:00:05.4]} 49... Qf3+ {[%clk 0:00:24.1]} 50. Kh2
{[%clk 0:00:06.6]} 50... Qf2+ {[%clk 0:00:25.4]} 51. Kh1 {[%clk 0:00:07.8]}
51... h4 {[%clk 0:00:26.9]} 52. Rxg7+ {[%clk 0:00:08.1]} 52... Kh6 {[%clk
0:00:28.1]} 53. Rg8 {[%clk 0:00:06.5]} 53... f4 {[%clk 0:00:29]} 54. Rh8+ {[%clk
0:00:06.7]} 54... Kg6 {[%clk 0:00:29.9]} 55. Rg8+ {[%clk 0:00:08]} 55... Kf5
{[%clk 0:00:31.3]} 56. Rg4 {[%clk 0:00:08.4]} 56... f3 {[%clk 0:00:32]} 57. Rg8
{[%clk 0:00:07.4]} 57... Ke4 {[%clk 0:00:31.8]} 58. Rg4+ {[%clk 0:00:06]} 58...
Kd3 {[%clk 0:00:33]} 59. Rd4+ {[%clk 0:00:06.1]} 59... Ke2 {[%clk 0:00:34.1]}
60. Rd2+ {[%clk 0:00:06.4]} 60... Kf1 {[%clk 0:00:35.6]} 61. Rxf2+ {[%clk
0:00:07.1]} 61... Kxf2 {[%clk 0:00:37.2]} 62. Bf6 {[%clk 0:00:06.6]} 62... Kg3
{[%clk 0:00:38]} 63. Kg1 {[%clk 0:00:07.1]} 63... Kxh3 {[%clk 0:00:38.8]} 64.
Kf2 {[%clk 0:00:08.2]} 64... Kg4 {[%clk 0:00:40.1]} 65. Be7 {[%clk 0:00:07.9]}
65... d5 {[%clk 0:00:40.7]} 66. Bc5 {[%clk 0:00:08]} 66... h3 {[%clk 0:00:41.5]}
67. Kg1 {[%clk 0:00:08.6]} 67... Kf4 {[%clk 0:00:41]} 68. Kh2 {[%clk 0:00:08.9]}
68... Ke4 {[%clk 0:00:42.2]} 69. Kxh3 {[%clk 0:00:10]} 69... d4 {[%clk
0:00:42.9]} 70. Kg3 {[%clk 0:00:10.6]} 70... Ke3 {[%clk 0:00:43.8]} 71. Bb6
{[%clk 0:00:09.9]} 71... f2 {[%clk 0:00:42.3]} 72. Kg2 {[%clk 0:00:09.5]} 72...
Ke2 {[%clk 0:00:43]} 73. Bxd4 {[%clk 0:00:11.2]} 73... f1=Q+ {[%clk 0:00:44.3]}
74. Kg3 {[%clk 0:00:12.3]} 74... Qf7 {[%clk 0:00:44.7]} 75. Bc3 {[%clk
0:00:12.6]} 0-1

[Event "*** Titled Tuesday Blitz"]
[Site "Chess.com"]
[Date "2019.02.05"]
[Round "8"]
[White "TST2014"]
[Black "kintoho"]
[Result "1/2-1/2"]
[WhiteElo "2521"]
[BlackElo "2486"]
[TimeControl "180+2"]
[EndTime "14:59:24 PST"]
[Termination "Game drawn by stalemate"]

1. d4 {[%clk 0:02:42.7]} 1... d6 {[%clk 0:03:00]} 2. c4 {[%clk 0:02:41.7]} 2...
e5 {[%clk 0:03:00.2]} 3. Nc3 {[%clk 0:02:41.1]} 3... exd4 {[%clk 0:03:00.7]} 4.
Qxd4 {[%clk 0:02:40.7]} 4... Nc6 {[%clk 0:03:01.9]} 5. Qd2 {[%clk 0:02:41.5]}
5... Be6 {[%clk 0:03:02.7]} 6. b3 {[%clk 0:02:42.4]} 6... a5 {[%clk 0:02:58.8]}
7. e4 {[%clk 0:02:40.4]} 7... Nf6 {[%clk 0:02:52.5]} 8. Nf3 {[%clk 0:02:37.9]}
8... a4 {[%clk 0:02:53]} 9. Rb1 {[%clk 0:02:36.4]} 9... axb3 {[%clk 0:02:53.6]}
10. axb3 {[%clk 0:02:37.3]} 10... Be7 {[%clk 0:02:51]} 11. Bd3 {[%clk
0:02:33.1]} 11... O-O {[%clk 0:02:40.2]} 12. Nd5 {[%clk 0:02:30.6]} 12... Ne5
{[%clk 0:02:31]} 13. Nd4 {[%clk 0:02:18]} 13... Nxd3+ {[%clk 0:02:30.3]} 14.
Qxd3 {[%clk 0:02:18.7]} 14... Nd7 {[%clk 0:02:10.5]} 15. O-O {[%clk 0:02:13.9]}
15... Nc5 {[%clk 0:02:10.9]} 16. Qf3 {[%clk 0:02:05.9]} 16... Bxd5 {[%clk
0:01:56.7]} 17. exd5 {[%clk 0:02:03]} 17... Bg5 {[%clk 0:01:53.7]} 18. Bb2
{[%clk 0:01:57.6]} 18... Bf6 {[%clk 0:01:50.4]} 19. b4 {[%clk 0:01:58.3]} 19...
Nd7 {[%clk 0:01:50.8]} 20. Rfe1 {[%clk 0:01:40.4]} 20... g6 {[%clk 0:01:49.9]}
21. g3 {[%clk 0:01:37.4]} 21... Bg7 {[%clk 0:01:50.1]} 22. Qe2 {[%clk
0:01:25.7]} 22... Ra2 {[%clk 0:01:39.4]} 23. Ra1 {[%clk 0:01:19.5]} 23... Rxa1
{[%clk 0:01:33.4]} 24. Bxa1 {[%clk 0:01:20.4]} 24... Nf6 {[%clk 0:01:32]} 25.
Nb5 {[%clk 0:01:06.8]} 25... c6 {[%clk 0:01:23.8]} 26. dxc6 {[%clk 0:01:04.6]}
26... bxc6 {[%clk 0:01:25.2]} 27. Nd4 {[%clk 0:01:06.2]} 27... Qb6 {[%clk
0:01:16.3]} 28. Qf3 {[%clk 0:00:52.7]} 28... Qxb4 {[%clk 0:01:11.5]} 29. Bc3
{[%clk 0:00:47.8]} 29... Qxc4 {[%clk 0:01:08.8]} 30. Nxc6 {[%clk 0:00:48.4]}
30... Nd7 {[%clk 0:00:51.1]} 31. Ne7+ {[%clk 0:00:32.1]} 31... Kh8 {[%clk
0:00:52]} 32. Bxg7+ {[%clk 0:00:29.4]} 32... Kxg7 {[%clk 0:00:53.3]} 33. Re4
{[%clk 0:00:26.7]} 33... Qc1+ {[%clk 0:00:48.9]} 34. Kg2 {[%clk 0:00:27.8]}
34... Ne5 {[%clk 0:00:49.5]} 35. Qe2 {[%clk 0:00:21.5]} 35... Ra8 {[%clk
0:00:29.9]} 36. f4 {[%clk 0:00:17.8]} 36... Nc6 {[%clk 0:00:21.5]} 37. f5 {[%clk
0:00:15.6]} 37... Nxe7 {[%clk 0:00:21.5]} 38. Rxe7 {[%clk 0:00:16.1]} 38... Qc6+
{[%clk 0:00:17.9]} 39. Kh3 {[%clk 0:00:16.6]} 39... gxf5 {[%clk 0:00:18.4]} 40.
Qh5 {[%clk 0:00:16.1]} 40... Qd5 {[%clk 0:00:19.1]} 41. Qg5+ {[%clk 0:00:16.8]}
41... Kf8 {[%clk 0:00:20.4]} 42. Rd7 {[%clk 0:00:16.2]} 42... Re8 {[%clk
0:00:18]} 43. Qh6+ {[%clk 0:00:16.9]} 43... Kg8 {[%clk 0:00:18.2]} 44. Rxd6
{[%clk 0:00:18.2]} 44... Qe4 {[%clk 0:00:14.6]} 45. Qg5+ {[%clk 0:00:19]} 45...
Kf8 {[%clk 0:00:15.5]} 46. Qh6+ {[%clk 0:00:19]} 46... Kg8 {[%clk 0:00:16.8]}
47. Qg5+ {[%clk 0:00:15]} 47... Kf8 {[%clk 0:00:17.8]} 48. Rh6 {[%clk
0:00:11.9]} 48... f4 {[%clk 0:00:18.4]} 49. Qxf4 {[%clk 0:00:09.4]} 49... Qxf4
{[%clk 0:00:19.4]} 50. gxf4 {[%clk 0:00:11]} 50... Kg7 {[%clk 0:00:20.8]} 51.
Rh4 {[%clk 0:00:12.1]} 51... Re3+ {[%clk 0:00:21.1]} 52. Kg2 {[%clk 0:00:12.9]}
52... Kg6 {[%clk 0:00:22.1]} 53. Rg4+ {[%clk 0:00:14.2]} 53... Kf5 {[%clk
0:00:23.4]} 54. Rh4 {[%clk 0:00:15.5]} 54... Kg6 {[%clk 0:00:24.6]} 55. Rg4+
{[%clk 0:00:16.4]} 55... Kf5 {[%clk 0:00:24.9]} 56. Rh4 {[%clk 0:00:17.2]} 56...
h5 {[%clk 0:00:26.1]} 57. Rxh5+ {[%clk 0:00:17.9]} 57... Kxf4 {[%clk 0:00:27.3]}
58. Rh4+ {[%clk 0:00:19.3]} 58... Kg5 {[%clk 0:00:28.6]} 59. Rh3 {[%clk
0:00:20.2]} 59... Rxh3 {[%clk 0:00:27.3]} 60. Kxh3 {[%clk 0:00:21.1]} 60... Kf4
{[%clk 0:00:28.3]} 61. Kg2 {[%clk 0:00:22.3]} 61... f5 {[%clk 0:00:28.6]} 62.
Kf2 {[%clk 0:00:23.2]} 62... Kg4 {[%clk 0:00:29.8]} 63. h4 {[%clk 0:00:23.5]}
63... Kxh4 {[%clk 0:00:29]} 64. Kf3 {[%clk 0:00:24.7]} 64... Kg5 {[%clk
0:00:30.3]} 65. Kg3 {[%clk 0:00:26]} 65... f4+ {[%clk 0:00:31.1]} 66. Kf3 {[%clk
0:00:27.2]} 66... Kf5 {[%clk 0:00:32.1]} 67. Kf2 {[%clk 0:00:28.6]} 67... Ke4
{[%clk 0:00:33.9]} 68. Ke2 {[%clk 0:00:29.4]} 68... f3+ {[%clk 0:00:34.7]} 69.
Kf2 {[%clk 0:00:30]} 69... Kf4 {[%clk 0:00:36.2]} 70. Kf1 {[%clk 0:00:31.1]}
70... Kg3 {[%clk 0:00:37.5]} 71. Kg1 {[%clk 0:00:32.1]} 71... f2+ {[%clk
0:00:39.1]} 72. Kf1 {[%clk 0:00:33.2]} 72... Kf3 {[%clk 0:00:41]} 1/2-1/2

[Event "*** Titled Tuesday Blitz"]
[Site "Chess.com"]
[Date "2019.02.05"]
[Round "8"]
[White "ShadyH9"]
[Black "GrandGlacier"]
[Result "0-1"]
[WhiteElo "2315"]
[BlackElo "2206"]
[TimeControl "180+2"]
[EndTime "14:59:25 PST"]
[Termination "GrandGlacier won by resignation"]

1. d4 {[%clk 0:03:01.9]} 1... Nf6 {[%clk 0:02:59.7]} 2. c4 {[%clk 0:03:02.2]}
2... c5 {[%clk 0:03:00.8]} 3. Nf3 {[%clk 0:03:01.6]} 3... cxd4 {[%clk
0:03:01.2]} 4. Nxd4 {[%clk 0:03:03.5]} 4... Nc6 {[%clk 0:02:59.5]} 5. Nc3 {[%clk
0:03:02.6]} 5... d5 {[%clk 0:02:55.8]} 6. g3 {[%clk 0:02:52.6]} 6... e5 {[%clk
0:02:55.3]} 7. Nxc6 {[%clk 0:02:52.2]} 7... bxc6 {[%clk 0:02:57.2]} 8. Bg2
{[%clk 0:02:52.5]} 8... Be6 {[%clk 0:02:56.8]} 9. cxd5 {[%clk 0:02:36.8]} 9...
cxd5 {[%clk 0:02:57.3]} 10. O-O {[%clk 0:02:32.9]} 10... Be7 {[%clk 0:02:39.6]}
11. Bg5 {[%clk 0:02:30.6]} 11... e4 {[%clk 0:02:40.3]} 12. Nb5 {[%clk
0:02:16.3]} 12... Qb6 {[%clk 0:02:17.9]} 13. Nd4 {[%clk 0:02:09]} 13... Qxb2
{[%clk 0:02:11.5]} 14. Rb1 {[%clk 0:00:58]} 14... Qa3 {[%clk 0:02:10.7]} 15. Rb7
{[%clk 0:00:35.3]} 15... O-O {[%clk 0:02:08]} 16. Nc6 {[%clk 0:00:35.9]} 16...
Rfe8 {[%clk 0:01:55]} 17. Rxe7 {[%clk 0:00:27.3]} 17... Rxe7 {[%clk 0:01:51.7]}
18. Bxf6 {[%clk 0:00:28.2]} 18... Rc7 {[%clk 0:01:41.3]} 19. Ne7+ {[%clk
0:00:09.9]} 19... Rxe7 {[%clk 0:01:36.7]} 20. Bxe7 {[%clk 0:00:11.8]} 20... Qxe7
{[%clk 0:01:37.8]} 21. Qd4 {[%clk 0:00:13.3]} 21... Rc8 {[%clk 0:01:33.5]} 22.
Rb1 {[%clk 0:00:13.2]} 22... Qc5 {[%clk 0:01:25.6]} 23. Qxc5 {[%clk 0:00:11.6]}
23... Rxc5 {[%clk 0:01:26.2]} 24. Rb8+ {[%clk 0:00:12.9]} 24... Rc8 {[%clk
0:01:24.3]} 25. Rb7 {[%clk 0:00:13.3]} 25... Rc1+ {[%clk 0:01:24.8]} 26. Bf1
{[%clk 0:00:13.7]} 26... h5 {[%clk 0:01:21.6]} 27. Kg2 {[%clk 0:00:11.7]} 27...
Bh3+ {[%clk 0:01:12.6]} 28. Kxh3 {[%clk 0:00:12.1]} 28... Rxf1 {[%clk
0:01:13.7]} 29. Kg2 {[%clk 0:00:11.8]} 29... Re1 {[%clk 0:01:14.9]} 30. e3
{[%clk 0:00:12.3]} 30... d4 {[%clk 0:01:14]} 31. exd4 {[%clk 0:00:10.3]} 31...
Re2 {[%clk 0:01:09.9]} 32. Rxa7 {[%clk 0:00:10.6]} 32... e3 {[%clk 0:01:10.4]}
33. Kf1 {[%clk 0:00:10]} 33... Rxf2+ {[%clk 0:01:11.3]} 34. Ke1 {[%clk
0:00:09.6]} 34... Rxh2 {[%clk 0:01:12.2]} 35. Ra8+ {[%clk 0:00:09.3]} 35... Kh7
{[%clk 0:01:12.4]} 36. d5 {[%clk 0:00:10.5]} 36... Rd2 {[%clk 0:01:10.6]} 37.
Ra5 {[%clk 0:00:10.4]} 37... g5 {[%clk 0:01:08.2]} 38. a4 {[%clk 0:00:11.2]}
38... h4 {[%clk 0:01:08.2]} 39. gxh4 {[%clk 0:00:09.3]} 39... gxh4 {[%clk
0:01:09.4]} 40. d6 {[%clk 0:00:10.5]} 40... Kg6 {[%clk 0:01:08.3]} 41. Re5
{[%clk 0:00:11.3]} 41... Rxd6 {[%clk 0:00:54.5]} 42. Rxe3 {[%clk 0:00:11.4]}
42... Ra6 {[%clk 0:00:47.5]} 43. Re4 {[%clk 0:00:09.1]} 43... Kg5 {[%clk
0:00:47.3]} 44. Kf2 {[%clk 0:00:09.2]} 44... f5 {[%clk 0:00:48.3]} 45. Rb4
{[%clk 0:00:09.8]} 45... Rc6 {[%clk 0:00:46.7]} 46. a5 {[%clk 0:00:09.3]} 46...
Rc2+ {[%clk 0:00:45.2]} 47. Kg1 {[%clk 0:00:06.6]} 47... Ra2 {[%clk 0:00:39.9]}
48. Rb5 {[%clk 0:00:07.5]} 48... Kg4 {[%clk 0:00:41]} 49. Rb4+ {[%clk
0:00:07.1]} 49... f4 {[%clk 0:00:40.4]} 50. Rb8 {[%clk 0:00:06.8]} 50... Rxa5
{[%clk 0:00:40.1]} 51. Rg8+ {[%clk 0:00:07.5]} 51... Rg5 {[%clk 0:00:40.7]} 52.
Rf8 {[%clk 0:00:06.8]} 52... Kf3+ {[%clk 0:00:41.4]} 53. Kh2 {[%clk 0:00:07.5]}
53... Ke3 {[%clk 0:00:41.8]} 54. Re8+ {[%clk 0:00:05.9]} 54... Kf2 {[%clk
0:00:42.7]} 55. Kh3 {[%clk 0:00:04.8]} 55... f3 {[%clk 0:00:34.3]} 56. Re4
{[%clk 0:00:04.5]} 56... Rg3+ {[%clk 0:00:29]} 57. Kxh4 {[%clk 0:00:05.1]} 57...
Kg2 {[%clk 0:00:28.5]} 58. Ra4 {[%clk 0:00:02.4]} 58... f2 {[%clk 0:00:29.3]}
59. Ra2 {[%clk 0:00:03.3]} 59... Rg8 {[%clk 0:00:29.3]} 0-1

[Event "*** Titled Tuesday Blitz"]
[Site "Chess.com"]
[Date "2019.02.05"]
[Round "8"]
[White "Fins0905"]
[Black "GM_dmitrij"]
[Result "0-1"]
[WhiteElo "2644"]
[BlackElo "2783"]
[TimeControl "180+2"]
[EndTime "14:59:43 PST"]
[Termination "GM_dmitrij won on time"]

1. d4 {[%clk 0:03:01.9]} 1... Nf6 {[%clk 0:03:00]} 2. c4 {[%clk 0:03:02]} 2...
e6 {[%clk 0:02:59.1]} 3. Nf3 {[%clk 0:03:02.8]} 3... d5 {[%clk 0:02:58.4]} 4.
Bg5 {[%clk 0:03:03]} 4... Bb4+ {[%clk 0:02:57.8]} 5. Nc3 {[%clk 0:03:03.3]} 5...
dxc4 {[%clk 0:02:58]} 6. e3 {[%clk 0:02:53.3]} 6... b5 {[%clk 0:02:58.5]} 7. a4
{[%clk 0:02:53.2]} 7... c6 {[%clk 0:02:57.3]} 8. Be2 {[%clk 0:02:53.8]} 8... Bb7
{[%clk 0:02:57.8]} 9. Nd2 {[%clk 0:02:52.2]} 9... a6 {[%clk 0:02:52.3]} 10. O-O
{[%clk 0:02:44.5]} 10... Nbd7 {[%clk 0:02:50]} 11. Bf3 {[%clk 0:02:44.4]} 11...
O-O {[%clk 0:02:45.6]} 12. Qc2 {[%clk 0:02:36.2]} 12... Qb6 {[%clk 0:02:29]} 13.
b3 {[%clk 0:01:59.6]} 13... cxb3 {[%clk 0:02:18.5]} 14. Nxb3 {[%clk 0:01:58.3]}
14... Rac8 {[%clk 0:02:03.8]} 15. Bxf6 {[%clk 0:01:20.6]} 15... Nxf6 {[%clk
0:02:01.1]} 16. Ne4 {[%clk 0:01:15.6]} 16... Nxe4 {[%clk 0:01:53.5]} 17. Qxe4
{[%clk 0:01:15.1]} 17... Rc7 {[%clk 0:01:39.7]} 18. a5 {[%clk 0:01:06.9]} 18...
Qa7 {[%clk 0:01:39.5]} 19. Qe5 {[%clk 0:01:05.4]} 19... Rd7 {[%clk 0:01:19.7]}
20. Rfc1 {[%clk 0:00:56.1]} 20... Bd6 {[%clk 0:01:12.9]} 21. Qg5 {[%clk
0:00:49.4]} 21... h6 {[%clk 0:01:12.8]} 22. Qh5 {[%clk 0:00:49.4]} 22... Re7
{[%clk 0:01:03.3]} 23. Nc5 {[%clk 0:00:39.6]} 23... Bc8 {[%clk 0:00:54.7]} 24.
Nd3 {[%clk 0:00:35.2]} 24... Bd7 {[%clk 0:00:45.7]} 25. Bxc6 {[%clk 0:00:33.2]}
25... Rc8 {[%clk 0:00:38.8]} 26. Qf3 {[%clk 0:00:26.9]} 26... Ree8 {[%clk
0:00:21.4]} 27. g3 {[%clk 0:00:23.2]} 27... Red8 {[%clk 0:00:15.5]} 28. Rc2
{[%clk 0:00:20.4]} 28... Bxc6 {[%clk 0:00:14]} 29. Rxc6 {[%clk 0:00:20.9]} 29...
Qa8 {[%clk 0:00:12.5]} 30. Rxc8 {[%clk 0:00:15.7]} 30... Qxc8 {[%clk 0:00:11.9]}
31. Rc1 {[%clk 0:00:16.1]} 31... Qa8 {[%clk 0:00:11.5]} 32. Qxa8 {[%clk
0:00:09.7]} 32... Rxa8 {[%clk 0:00:13.4]} 33. Rc6 {[%clk 0:00:10.8]} 33... Be7
{[%clk 0:00:14.5]} 34. Kf1 {[%clk 0:00:11]} 34... Bd8 {[%clk 0:00:15.2]} 35. Nc5
{[%clk 0:00:11.2]} 35... Bxa5 {[%clk 0:00:16.2]} 36. Nxa6 {[%clk 0:00:10.4]}
36... Bd2 {[%clk 0:00:10.6]} 37. Ke2 {[%clk 0:00:10.8]} 37... Ba5 {[%clk
0:00:11.6]} 38. Kd3 {[%clk 0:00:08.9]} 38... Kf8 {[%clk 0:00:11.8]} 39. Nc5
{[%clk 0:00:07.8]} 39... Bb4 {[%clk 0:00:11.4]} 40. Nb7 {[%clk 0:00:08.4]} 40...
Ra2 {[%clk 0:00:10.8]} 41. Ke4 {[%clk 0:00:09.2]} 41... Rxf2 {[%clk 0:00:10.9]}
42. h4 {[%clk 0:00:08.1]} 42... g6 {[%clk 0:00:11.5]} 43. Rb6 {[%clk 0:00:08.8]}
43... Be1 {[%clk 0:00:11.9]} 44. Rxb5 {[%clk 0:00:08.5]} 44... Rg2 {[%clk
0:00:13.2]} 45. Nd6 {[%clk 0:00:06.8]} 45... Bxg3 {[%clk 0:00:13.1]} 46. Rb8+
{[%clk 0:00:05.9]} 46... Ke7 {[%clk 0:00:12.5]} 47. Nc8+ {[%clk 0:00:06.8]}
47... Kd7 {[%clk 0:00:12.6]} 48. Ra8 {[%clk 0:00:08.4]} 48... Bxh4 {[%clk
0:00:13.1]} 49. Nb6+ {[%clk 0:00:06.9]} 49... Ke7 {[%clk 0:00:14.4]} 50. Ra7+
{[%clk 0:00:06.9]} 50... Kf8 {[%clk 0:00:13.7]} 51. Nd7+ {[%clk 0:00:07.9]}
51... Kg7 {[%clk 0:00:14.8]} 52. Ne5 {[%clk 0:00:08.8]} 52... Rf2 {[%clk
0:00:16.1]} 53. Kd3 {[%clk 0:00:07.9]} 53... Bg3 {[%clk 0:00:16.6]} 54. Nc6
{[%clk 0:00:07.8]} 54... h5 {[%clk 0:00:17.3]} 55. Ra1 {[%clk 0:00:05.5]} 55...
h4 {[%clk 0:00:17.9]} 56. Rg1 {[%clk 0:00:06.5]} 56... g5 {[%clk 0:00:17.3]} 57.
e4 {[%clk 0:00:06.6]} 57... Rf3+ {[%clk 0:00:12.4]} 58. Ke2 {[%clk 0:00:07.2]}
58... g4 {[%clk 0:00:13.2]} 59. d5 {[%clk 0:00:07.6]} 59... exd5 {[%clk
0:00:15.1]} 60. exd5 {[%clk 0:00:09.4]} 60... h3 {[%clk 0:00:16.3]} 61. Nd4
{[%clk 0:00:10.4]} 61... h2 {[%clk 0:00:15.8]} 62. Rh1 {[%clk 0:00:05.1]} 62...
Rf2+ {[%clk 0:00:17]} 63. Ke3 {[%clk 0:00:06.3]} 63... f5 {[%clk 0:00:15]} 64.
Ne2 {[%clk 0:00:05.2]} 64... f4+ {[%clk 0:00:16.2]} 65. Kd3 {[%clk 0:00:06.8]}
65... Kf6 {[%clk 0:00:13.7]} 66. d6 {[%clk 0:00:04.3]} 66... Ke6 {[%clk
0:00:14.8]} 67. Nd4+ {[%clk 0:00:04.1]} 67... Kxd6 {[%clk 0:00:15.1]} 68. Ke4
{[%clk 0:00:06]} 68... Rg2 {[%clk 0:00:14.2]} 69. Nf5+ {[%clk 0:00:04.8]} 69...
Ke6 {[%clk 0:00:15.4]} 70. Nxg3 {[%clk 0:00:04.8]} 70... fxg3 {[%clk 0:00:16.1]}
71. Re1 {[%clk 0:00:03.4]} 71... Rg1 {[%clk 0:00:16.9]} 0-1